bitfinex-derivatives/quotes_ETHF0:USTF0_20251003
["timestamp","ask_amount","ask_price","bid_price","bid_amount"]
[1759465413678,0.7670574,4506.7,4506.6,1.14909]
[1759465414077,0.0017574,4506.7,4506.6,1.14909]
[1759465414678,0.2088574,4506.7,4506.6,0.75]
[1759465415581,0.2088574,4506.7,4506.6,1.14909]
[1759465417782,0.2088574,4506.7,4506.6,1.37109]
[1759465420585,0.0017574,4506.7,4506.6,1.37109]
[1759465423285,0.0017574,4506.7,4506.6,2.56508148]
[1759465424187,0.0017574,4506.7,4506.6,1.37109]
[1759465426087,0.2088574,4506.7,4506.6,1.37109]
[1759465427787,0.0017574,4506.7,4506.6,1.37109]
[1759465435491,2.33612013,4507.3,4507.2,1.14124]
[1759465435690,2.33612013,4507.3,4507.2,1.36324]
[1759465435896,3.2078,4507.9,4507.8,0.7422]
[1759465436494,0.00275777,4507.9,4507.8,0.74379194]
[1759465438197,0.00275777,4507.9,4507.8,1.54072701]
[1759465440296,0.20985777,4507.9,4507.8,1.54072701]
[1759465440503,0.00275777,4507.9,4507.8,0.74379194]
[1759465447807,3.2078,4509.0,4508.9,0.2144]
[1759465448002,3.2078,4509.0,4508.9,0.7557]
[1759465448209,3.2078,4509.0,4508.9,1.15459]
[1759465448914,3.2103619,4509.0,4508.9,1.15459]
[1759465449709,3.2103619,4509.0,4508.9,0.7557]
[1759465453714,0.0025619,4509.0,4508.9,0.7557]
[1759465455521,0.2265619,4509.0,4508.9,0.7557]
[1759465457614,0.0025619,4509.0,4508.9,0.7557]
[1759465464626,0.0025619,4509.0,4508.9,0.9777]
[1759465468122,0.2193619,4509.0,4508.9,0.9777]
[1759465468314,0.7308619,4509.0,4508.9,0.9777]
[1759465468914,5.7308619,4509.0,4508.9,0.5478]
[1759465469123,5.7308619,4509.0,4508.5,0.1341]
[1759465469319,0.7308619,4509.0,4508.5,0.1341]
[1759465469628,0.7308619,4509.0,4508.6,0.3109]
[1759465469629,0.8278619,4509.0,4508.6,0.3109]
[1759465470325,0.8278619,4509.0,4508.5,0.3109]
[1759465470524,0.8278619,4509.0,4508.4,0.222]
[1759465470721,0.8278619,4509.0,4508.5,0.4334]
[1759465470917,0.0025619,4509.0,4508.8,0.4322]
[1759465471122,0.0025619,4509.0,4508.9,0.7431]
[1759465474229,0.0025619,4509.0,4508.9,1.54003507]
[1759465474829,0.0025619,4509.0,4508.9,0.7431]
[1759465475023,0.2075619,4509.0,4508.9,0.7431]
[1759465475229,0.2075619,4509.0,4508.9,1.54003507]
[1759465477025,3.2078,4509.2,4508.9,1.54003507]
[1759465477229,1.57465731,4511.1,4511.0,0.1326]
[1759465477428,0.205,4511.9,4511.8,0.7482]
[1759465477724,0.3127,4512.4,4511.9,0.3256]
[1759465477923,0.9481,4512.4,4512.3,0.5425]
[1759465478125,0.00160689,4512.4,4512.3,0.75029898]
[1759465478325,3.6212,4513.7,4513.6,0.7482]
[1759465478525,3.6212,4513.7,4513.6,0.5425]
[1759465478733,3.6212,4513.7,4513.5,0.1326]
[1759465478734,0.4134,4513.1,4512.9,0.3256]
[1759465478935,3.9355,4513.0,4512.5,0.72880596]
[1759465479235,0.4134,4512.7,4512.6,0.5425]
[1759465480232,0.7277,4512.7,4512.6,0.5425]
[1759465480727,0.7277,4512.7,4512.3,0.00209898]
[1759465480932,0.5227,4512.5,4512.4,0.3256]
[1759465481235,0.7277,4512.5,4512.4,0.5425]
[1759465485734,0.5363,4512.8,4512.4,0.7482]
[1759465485936,0.9497,4512.8,4512.7,0.5425]
[1759465487939,0.6354,4512.8,4512.4,0.3256]
[1759465488137,3.9355,4512.5,4512.4,0.5425]
[1759465488337,4.1575,4512.5,4512.4,0.5425]
[1759465488740,3.8432,4512.5,4512.4,0.7482]
[1759465489544,4.1575,4512.5,4512.4,0.3256]
[1759465489843,0.3143,4512.4,4512.3,0.00209898]
[1759465490033,0.7277,4512.4,4512.3,0.00209898]
[1759465490238,0.7277,4512.4,4512.3,0.32769898]
[1759465492144,0.7277,4512.4,4512.3,0.00209898]
[1759465492644,5.7277,4512.4,4511.5,0.3256]
[1759465492844,0.7277,4511.6,4511.5,0.3256]
[1759465493039,0.6344,4511.6,4511.1,0.3256]
[1759465493237,0.4134,4511.2,4511.1,0.5425]
[1759465493438,0.9487,4511.2,4511.1,0.5425]
[1759465493646,0.9487,4511.2,4511.1,0.54533183]
[1759465493846,0.6344,4511.2,4511.1,0.75103183]
[1759465494547,4.1565,4511.2,4511.1,0.00283183]
[1759465495246,4.1565,4511.2,4511.1,0.32843183]
[1759465495445,4.1565,4511.2,4511.1,0.54533183]
[1759465495650,4.1565,4511.2,4511.1,0.00283183]
[1759465495945,3.9355,4511.2,4511.1,0.00283183]
[1759465496146,4.1565,4511.2,4511.1,0.00283183]
[1759465497950,9.1565,4511.2,4511.1,0.00283183]
[1759465508953,4.1565,4511.2,4511.1,0.00283183]
[1759465509348,9.1565,4511.2,4510.4,0.3208]
[1759465509553,3.949,4510.5,4510.4,0.3208]
[1759465509859,4.171,4510.5,4510.1,0.3208]
[1759465510057,4.171,4510.5,4510.0,0.1326]
[1759465510257,0.4295,4510.1,4510.0,0.57519036]
[1759465510459,0.6515,4510.1,4510.0,0.89599036]
[1759465510953,0.9632,4510.1,4510.0,0.32259036]
[1759465511757,0.9632,4510.1,4510.0,0.00179036]
[1759465513360,0.9632,4510.1,4510.0,0.67279036]
[1759465514360,3.5195,4510.5,4510.0,0.89429036]
[1759465514566,0.222,4510.4,4510.3,0.4408]
[1759465514759,0.222,4510.4,4510.3,0.7616]
[1759465517159,0.9632,4510.4,4510.3,0.5401]
[1759465517464,0.9632,4510.4,4510.3,0.3208]
[1759465517764,0.9632,4510.4,4510.3,0.5401]
[1759465519265,0.9632,4510.4,4510.0,0.13269036]
[1759465519266,0.9632,4510.4,4510.0,0.32259036]
[1759465519575,0.9632,4510.4,4510.0,0.00179036]
[1759465519869,0.7412,4510.1,4510.0,0.32259036]
[1759465520165,0.9632,4510.1,4510.0,0.32259036]
[1759465523669,0.9632,4510.1,4510.0,0.00179036]
[1759465526276,0.9632,4510.1,4510.0,0.31069036]
[1759465527178,0.9632,4510.1,4510.0,0.51419036]
[1759465527577,0.7412,4510.1,4510.0,0.64379036]
[1759465527878,0.9632,4510.1,4510.0,0.64379036]
[1759465530276,0.7412,4510.1,4510.0,0.64379036]
[1759465530475,0.9632,4510.1,4510.0,0.64379036]
[1759465531275,0.7412,4510.1,4510.0,0.64379036]
[1759465531482,0.9632,4510.1,4510.0,0.64379036]
[1759465531981,0.7412,4510.1,4510.0,0.64379036]
[1759465532183,0.9632,4510.1,4510.0,0.64379036]
[1759465533977,0.9632,4510.1,4510.0,0.31069036]
[1759465539385,0.9632,4510.1,4510.0,0.52989036]
[1759465540385,0.7412,4510.1,4510.0,0.52989036]
[1759465540677,0.6515,4510.1,4510.0,0.86729036]
[1759465540880,0.9633,4510.1,4510.0,0.00179036]
[1759465547199,0.9633,4510.1,4510.0,0.32409036]
[1759465547497,0.9633,4510.1,4510.0,0.00179036]
[1759465552997,0.7413,4510.1,4510.0,0.00179036]
[1759465553196,0.9633,4510.1,4510.0,0.00179036]
[1759465554097,0.7367,4509.8,4509.7,0.3223]
[1759465554298,4.1665,4509.8,4509.7,0.3223]
[1759465555002,4.16882146,4509.8,4509.7,0.32480008]
[1759465555801,4.16882146,4509.8,4509.7,0.54400008]
[1759465556000,4.16882146,4509.8,4509.7,0.75490008]
[1759465558398,4.16882146,4509.8,4509.7,0.54400008]
[1759465558607,4.345124,4509.8,4509.7,0.54400008]
[1759465558804,4.345124,4509.8,4509.7,0.32480008]
[1759465559507,4.16882146,4509.8,4509.7,0.32480008]
[1759465560605,4.16882146,4509.8,4509.7,0.00250008]
[1759465562110,4.16882146,4509.8,4509.7,0.32630008]
[1759465562609,4.16882146,4509.8,4509.7,0.54210008]
[1759465563604,4.16882146,4509.8,4509.7,0.32630008]
[1759465564107,4.16882146,4509.8,4509.7,0.00250008]
[1759465564504,4.16882146,4509.8,4509.1,0.3238]
[1759465564709,3.922,4509.2,4509.1,0.3238]
[1759465564905,4.144,4509.2,4509.1,0.3238]
[1759465565405,0.2079,4508.2,4508.1,0.81347526]
[1759465565609,4.144,4508.2,4508.1,0.42253505]
[1759465566611,3.922,4508.2,4508.1,0.42253505]
[1759465566804,4.144,4508.2,4508.1,0.42253505]
[1759465567207,3.922,4508.2,4508.1,0.42253505]
[1759465567412,4.144,4508.2,4508.1,0.74633505]
[1759465570810,4.144,4508.2,4508.1,0.54123505]
[1759465572211,4.144,4508.2,4508.1,0.21743505]
[1759465572415,4.144,4508.2,4508.1,0.54123505]
[1759465573419,4.144,4508.2,4508.1,0.74633505]
[1759465574917,3.922,4508.2,4508.1,0.74633505]
[1759465575117,4.144,4508.2,4508.1,0.74633505]
[1759465576820,3.922,4508.2,4508.1,0.74633505]
[1759465577022,4.144,4508.2,4508.1,0.74633505]
[1759465579020,4.144,4508.2,4508.1,0.00163505]
[1759465585426,0.7262,4507.3,4507.2,0.5273]
[1759465585628,4.156,4507.3,4507.2,0.7283]
[1759465586328,4.156,4507.3,4507.2,0.73040567]
[1759465586529,3.934,4507.3,4507.2,0.73040567]
[1759465586730,4.156,4507.3,4507.2,0.73040567]
[1759465589927,3.934,4507.3,4507.2,0.73040567]
[1759465590228,4.156,4507.3,4507.2,0.73040567]
[1759465595731,4.156,4507.3,4507.2,0.52940567]
[1759465595935,4.156,4507.3,4507.2,0.00210567]
[1759465599029,0.4224,4506.2,4506.1,3.7563]
[1759465599229,0.9546,4506.2,4506.1,3.7563]
[1759465599424,4.1624,4506.2,4506.1,0.5485]
[1759465600031,4.16411695,4506.2,4506.1,0.5508149]
[1759465600234,4.16411695,4506.2,4506.1,0.7729149]
[1759465602732,0.00171695,4506.2,4506.1,0.7729149]
[1759465603041,0.00171695,4506.2,4506.1,5.7729149]
[1759465606836,0.51521695,4506.2,4506.1,0.7729149]
[1759465607138,0.00171695,4506.2,4506.1,0.7729149]
[1759465607439,0.22371695,4506.2,4506.1,0.7729149]
[1759465610240,0.42701695,4506.2,4506.1,0.7729149]
[1759465612243,0.22371695,4506.2,4506.1,0.7729149]
[1759465615544,0.42701695,4506.2,4506.1,0.7729149]
[1759465615744,0.73721695,4506.2,4506.1,0.7729149]
[1759465618050,0.51521695,4506.2,4506.1,0.7729149]
[1759465618245,0.73431695,4506.2,4506.1,0.7729149]
[1759465620952,0.00171695,4506.2,4506.1,0.7729149]
[1759465621146,0.00171695,4506.2,4506.1,1.5642883]
[1759465623152,0.00171695,4506.2,4506.1,0.7729149]
[1759465625754,0.00171695,4506.2,4506.1,1.959975]
[1759465628458,3.2078,4506.9,4506.8,0.4196]
[1759465628650,0.222,4507.3,4506.8,0.4196]
[1759465628857,0.5375,4507.2,4507.1,0.7225]
[1759465629056,0.4256,4506.9,4506.6,0.79797976]
[1759465629256,3.9488,4506.8,4506.7,0.5148]
[1759465629456,3.95053339,4506.8,4506.7,0.5148]
[1759465630349,4.17253339,4506.8,4506.7,0.5148]
[1759465630554,4.17253339,4506.8,4506.7,0.2119]
[1759465630752,4.17253339,4506.8,4506.5,0.79797976]
[1759465630753,0.4256,4506.6,4506.5,0.79797976]
[1759465630954,0.741,4506.6,4506.5,0.79797976]
[1759465631354,0.741,4506.6,4506.5,1.31277976]
[1759465632764,0.741,4506.6,4506.5,1.00987976]
[1759465633270,0.741,4506.6,4506.5,1.31277976]
[1759465633462,0.741,4506.6,4506.5,1.00987976]
[1759465634670,0.741,4506.6,4506.5,0.79797976]
[1759465634865,0.5496,4506.5,4506.3,0.79797976]
[1759465635169,0.741,4506.2,4506.1,0.0023149]
[1759465635363,3.9488,4506.2,4506.1,0.0023149]
[1759465642873,0.741,4506.2,4506.1,0.0023149]
[1759465643174,3.9488,4506.2,4506.1,0.0023149]
[1759465644671,8.9488,4506.2,4506.1,0.0023149]
[1759465644876,8.9488,4506.2,4505.1,0.3029]
[1759465644877,9.1708,4506.2,4505.1,0.3029]
[1759465645071,0.7591,4505.2,4505.1,0.5108]
[1759465645271,0.9811,4505.2,4505.1,0.7172]
[1759465645872,0.9811,4505.2,4505.1,0.71988935]
[1759465647677,0.7591,4505.2,4505.1,0.71988935]
[1759465647877,0.9811,4505.2,4505.1,0.71988935]
[1759465648779,3.2078,4505.5,4505.1,0.41488935]
[1759465648981,0.222,4505.4,4505.3,0.4122]
[1759465649183,0.222,4505.4,4505.3,0.7172]
[1759465650874,3.2078,4505.5,4505.3,0.7172]
[1759465651075,3.4246,4506.1,4506.0,0.8417]
[1759465651272,4.1889,4506.1,4506.0,0.8417]
[1759465651478,4.1889,4506.1,4506.0,0.7172]
[1759465651678,4.1889,4506.1,4506.0,0.8477]
[1759465654084,0.1283,4506.0,4505.7,0.3262]
[1759465654384,0.4256,4505.6,4505.5,0.5296]
[1759465654585,0.9654,4505.6,4505.5,0.5296]
[1759465654988,0.9654,4505.6,4505.5,0.7496]
[1759465657182,0.9654,4505.6,4505.5,0.5296]
[1759465658080,0.9654,4505.6,4505.5,0.7496]
[1759465661678,0.7434,4505.6,4505.5,0.7496]
[1759465661979,0.9654,4505.6,4505.5,0.7496]
[1759465662691,0.5316,4505.6,4505.5,0.8801]
[1759465663188,0.5316,4505.6,4505.5,1.67807976]
[1759465665795,0.7434,4505.6,4505.5,1.67807976]
[1759465667490,0.2138,4505.6,4505.5,1.67807976]
[1759465667688,0.5316,4505.6,4505.5,1.67807976]
[1759465672894,3.4298,4505.8,4505.5,1.67807976]
[1759465673089,3.7476,4505.8,4505.7,0.2034]
[1759465673295,3.7394,4505.8,4505.7,0.7496]
[1759465673595,3.9614,4505.8,4505.7,0.7496]
[1759465673901,4.1732,4505.8,4505.7,0.7496]
[1759465674798,0.3178,4506.2,4506.0,0.1305]
[1759465675099,3.4298,4506.3,4506.2,0.7496]
[1759465675300,3.9614,4506.3,4506.2,0.7496]
[1759465675502,4.1732,4506.3,4506.2,0.7496]
[1759465677107,3.2078,4506.3,4506.2,0.7496]
[1759465677405,3.7394,4506.3,4506.2,1.54757976]
[1759465678508,3.4216,4506.3,4506.2,1.54757976]
[1759465679306,3.4216,4506.3,4506.2,0.7496]
[1759465679509,3.2078,4506.3,4506.2,0.7496]
[1759465680307,3.2078,4506.3,4506.2,1.54757976]
[1759465680912,3.7394,4506.3,4506.2,1.54757976]
[1759465681206,3.7394,4506.3,4506.2,0.7496]
[1759465681398,3.9512,4506.3,4506.2,0.7496]
[1759465686011,0.7434,4506.3,4506.2,0.7496]
[1759465693218,0.2138,4506.3,4506.2,0.7496]
[1759465693720,0.5399,4506.3,4506.2,0.7496]
[1759465695833,0.7613,4506.3,4506.2,0.7496]
[1759465696032,0.3261,4506.2,4506.0,0.79797976]
[1759465696332,0.9894,4506.1,4506.0,0.79797976]
[1759465696630,0.8938,4506.0,4505.9,0.79797976]
[1759465696932,0.7674,4505.9,4505.8,0.79797976]
[1759465697124,0.9894,4505.9,4505.8,0.79797976]
[1759465697324,0.6633,4505.9,4505.6,0.79797976]
[1759465697527,0.7674,4505.6,4505.5,0.79797976]
[1759465699732,0.7674,4505.6,4505.5,0.8602]
[1759465702032,0.7674,4505.6,4505.5,0.7389]
[1759465706244,0.7674,4505.6,4505.5,0.7444]
[1759465708045,0.7674,4505.6,4505.5,1.54197139]
[1759465709745,0.7674,4505.6,4505.5,0.99792099]
[1759465710246,0.7674,4505.6,4505.5,1.31672099]
[1759465714146,0.7674,4505.6,4505.5,1.53592099]
[1759465715050,0.9894,4505.6,4505.5,1.53592099]
[1759465715550,0.9894,4505.6,4505.5,0.7384]
[1759465716149,0.7674,4505.6,4505.5,0.7384]
[1759465716350,0.9894,4505.6,4505.5,0.7384]
[1759465717149,0.7674,4505.6,4505.5,0.7384]
[1759465717350,0.9894,4505.6,4505.5,0.7384]
[1759465717747,0.7674,4505.6,4505.5,0.7384]
[1759465718151,0.9894,4505.6,4505.5,0.7384]
[1759465719254,0.7674,4505.6,4505.5,0.7384]
[1759465719455,0.9894,4505.6,4505.5,0.7384]
[1759465721959,3.9357,4506.1,4506.0,0.7328]
[1759465722159,4.1577,4506.1,4506.0,0.7328]
[1759465722354,4.1577,4506.1,4506.0,0.5175]
[1759465722858,4.1577,4506.1,4506.0,0.2111]
[1759465723054,0.2185,4505.9,4505.7,0.79779585]
[1759465723262,0.7279,4505.7,4505.6,0.79779585]
[1759465724755,0.7279,4505.7,4505.6,1.00889585]
[1759465724950,0.7279,4505.7,4505.6,1.53059585]
[1759465726261,0.7279,4505.7,4505.6,0.7328]
[1759465726465,0.5272,4505.7,4505.6,0.7328]
[1759465726658,0.7492,4505.7,4505.6,0.7328]
[1759465726961,0.9499,4505.7,4505.6,0.7328]
[1759465734166,0.9499,4505.7,4505.6,0.5175]
[1759465734966,0.7279,4505.6,4505.5,0.79876824]
[1759465735171,0.8611,4505.5,4505.1,0.30908935]
[1759465735365,0.7279,4505.2,4505.1,0.52018935]
[1759465740085,0.7279,4505.2,4505.1,0.00268935]
[1759465743184,0.7279,4505.2,4505.1,0.52708935]
[1759465743489,0.7279,4505.2,4505.1,0.00268935]
[1759465745276,0.7279,4505.2,4505.1,0.52708935]
[1759465746680,0.7279,4505.2,4505.1,0.74858935]
[1759465746885,0.4405,4505.2,4505.1,0.74858935]
[1759465747080,0.7614,4505.2,4505.1,0.74858935]
[1759465747281,0.9819,4505.2,4505.1,0.74858935]
[1759465748586,0.9819,4505.2,4505.1,0.00268935]
[1759465749587,0.9819,4505.2,4505.1,0.52708935]
[1759465753291,0.9819,4505.2,4505.1,0.00268935]
[1759465754788,0.9819,4505.2,4505.1,0.32318935]
[1759465755188,0.9819,4505.2,4505.1,0.52708935]
[1759465755793,0.222,4505.2,4505.1,0.74858935]
[1759465756285,0.7447,4505.2,4505.1,0.74858935]
[1759465756488,0.9652,4505.2,4505.1,0.74858935]
[1759465757494,0.7432,4505.2,4505.1,0.52708935]
[1759465757792,0.9652,4505.2,4505.1,0.52708935]
[1759465757990,0.9652,4505.2,4505.1,0.74858935]
[1759465762393,0.9652,4505.2,4505.1,0.00268935]
[1759465770503,0.4281,4504.7,4504.6,0.79876824]
[1759465770708,0.8647,4504.5,4504.4,1.10806824]
[1759465771004,0.8647,4504.5,4504.4,1.30886824]
[1759465771202,0.8647,4504.5,4504.4,0.5101]
[1759465771402,1.0867,4504.5,4504.4,0.5101]
[1759465771705,1.0867,4504.5,4504.4,0.51293314]
[1759465772400,1.0867,4504.5,4504.4,0.72113314]
[1759465772704,0.9638,4504.5,4504.4,0.72113314]
[1759465777000,1.0972,4504.5,4504.4,0.72113314]
[1759465777201,1.0972,4504.5,4504.4,0.00283314]
[1759465777505,0.7648,4503.6,4503.5,0.5116]
[1759465777707,0.9868,4503.6,4503.5,0.5116]
[1759465778100,0.2219,4503.3,4503.2,0.79876824]
[1759465778405,0.98902775,4503.3,4503.2,1.52036027]
[1759465779299,0.98902775,4503.3,4503.2,0.72159203]
[1759465783611,0.76702775,4503.3,4503.2,0.72159203]
[1759465783906,0.98902775,4503.3,4503.2,0.72159203]
[1759465790310,0.76702775,4503.3,4503.2,0.72159203]
[1759465790512,0.00222775,4503.3,4503.2,0.72159203]
[1759465795222,0.00222775,4503.3,4503.2,1.52036027]
[1759465795422,0.00222775,4503.3,4503.2,0.72159203]
[1759465795625,3.7511,4504.1,4504.0,0.8443]
[1759465795817,3.9731,4504.1,4504.0,0.8443]
[1759465796622,4.19698952,4504.1,4504.0,0.8443]
[1759465796822,4.19698952,4504.1,4504.0,0.7198]
[1759465804128,4.19698952,4504.1,4504.0,0.5116]
[1759465806425,9.19698952,4504.1,4503.8,0.79640518]
[1759465806626,0.2078,4503.6,4503.5,0.79640518]
[1759465806826,0.8618,4503.5,4503.4,0.79640518]
[1759465807020,0.8618,4503.5,4503.2,1.19876167]
[1759465807021,0.5244,4503.4,4503.3,0.79640518]
[1759465807227,0.637,4503.4,4503.2,0.79819721]
[1759465807429,0.7316,4503.3,4503.2,0.79819721]
[1759465808123,0.7316,4503.3,4503.2,0.00179203]
[1759465810225,0.9536,4503.3,4503.2,0.00179203]
[1759465811121,0.7316,4503.3,4503.2,0.00179203]
[1759465811328,0.9536,4503.3,4503.2,0.00179203]
[1759465814639,0.3166,4502.2,4502.1,0.79640518]
[1759465814935,0.8618,4502.0,4501.9,0.5254]
[1759465815135,0.8618,4502.0,4501.8,0.04239045]
[1759465815332,0.9536,4501.9,4501.8,0.04239045]
[1759465815632,0.9536,4501.9,4501.8,0.04398794]
[1759465816629,1.35311,4501.9,4501.8,0.04398794]
[1759465818831,0.415,4500.8,4500.7,0.7451]
[1759465819031,0.7316,4500.8,4500.7,0.7451]
[1759465819939,0.73420976,4500.8,4500.7,0.74668825]
[1759465822741,0.73420976,4500.8,4500.7,0.20648825]
[1759465823039,0.73420976,4500.8,4500.7,0.52698825]
[1759465823235,0.73420976,4500.8,4500.7,0.00158825]
[1759465823438,4.34160976,4500.8,4500.7,0.00158825]
[1759465824127,4.34160976,4500.8,4500.1,3.2078]
[1759465824128,0.71627,4500.1,4499.6,3.2078]
[1759465824333,0.7316,4499.7,4499.6,3.6324]
[1759465824643,0.7316,4499.7,4499.6,0.4246]
[1759465824842,0.7316,4499.7,4499.6,0.2049]
[1759465825141,0.7316,4499.7,4499.6,0.20723295]
[1759465825438,0.7316,4499.7,4499.6,0.50783295]
[1759465825839,3.2078,4500.3,4500.2,0.7232]
[1759465826137,3.21040976,4500.8,4500.7,0.2109]
[1759465826435,3.76150976,4500.8,4500.7,0.7232]
[1759465826641,3.97460976,4500.8,4500.7,0.7232]
[1759465827438,0.5511,4500.2,4500.1,0.7232]
[1759465827637,0.7642,4500.2,4500.1,0.7232]
[1759465830733,0.7642,4500.2,4499.9,0.3006]
[1759465830939,0.886,4500.0,4499.9,0.5115]
[1759465831139,1.28568,4500.0,4499.9,0.5115]
[1759465832143,0.886,4500.0,4499.9,0.5115]
[1759465832341,0.7642,4500.0,4499.9,0.7232]
[1759465833444,0.7642,4500.0,4499.9,0.7169]
[1759465834142,3.5332,4500.3,4500.0,0.1259]
[1759465834445,3.9624,4500.3,4500.2,0.7242]
[1759465834646,3.9624,4500.3,4500.2,0.5188]
[1759465834843,3.9624,4500.3,4500.2,0.7242]
[1759465839044,3.9624,4500.3,4499.7,0.3149]
[1759465839249,3.9624,4500.3,4499.6,0.00233295]
[1759465839250,0.7546,4499.7,4499.6,0.00233295]
[1759465839552,0.7546,4499.7,4499.6,0.52113295]
[1759465839743,0.7546,4499.7,4499.6,0.72653295]
[1759465840146,0.3254,4500.1,4499.9,0.39968]
[1759465840454,0.7667,4500.0,4499.9,1.12388]
[1759465840748,0.5447,4500.0,4499.9,1.12388]
[1759465841048,0.4413,4500.2,4500.1,0.7242]
[1759465841241,0.7667,4500.2,4500.1,0.7242]
[1759465842441,0.5447,4500.2,4500.1,0.7242]
[1759465843039,0.5447,4500.2,4500.1,0.2039]
[1759465843040,0.7546,4500.2,4500.1,0.2039]
[1759465843245,0.7546,4500.2,4499.6,0.00233295]
[1759465843446,0.7546,4500.2,4499.7,0.3149]
[1759465843650,3.82945,4500.3,4499.6,0.00233295]
[1759465843651,0.7546,4499.7,4499.6,0.00233295]
[1759465845847,0.7546,4499.7,4499.6,0.20623295]
[1759465847250,0.7546,4499.7,4498.9,0.79640518]
[1759465847251,0.7546,4498.8,4498.7,1.00030518]
[1759465847449,0.7546,4498.8,4498.7,0.7242]
[1759465847753,3.2078,4499.1,4498.8,0.3149]
[1759465847754,0.222,4498.9,4498.8,0.3149]
[1759465847953,0.222,4498.9,4498.8,0.7242]
[1759465848354,0.2193,4498.9,4498.8,0.72697461]
[1759465848557,0.4413,4498.9,4498.8,0.72697461]
[1759465851755,0.7667,4498.9,4498.8,0.72697461]
[1759465853154,0.2193,4498.9,4498.8,0.72697461]
[1759465853354,0.4413,4498.9,4498.8,0.72697461]
[1759465854263,0.9766,4498.9,4498.8,0.72697461]
[1759465854560,0.9766,4498.9,4498.8,0.52157461]
[1759465854963,1.37637,4498.9,4498.8,0.52157461]
[1759465855661,1.37637,4498.9,4498.8,0.00277461]
[1759465866182,0.8699,4498.0,4497.9,0.02223284]
[1759465866372,1.0919,4498.0,4497.9,0.52873284]
[1759465866567,1.0919,4498.0,4497.9,0.02223284]
[1759465867076,1.0919,4498.0,4497.9,0.0244388]
[1759465867979,1.0919,4498.0,4497.9,0.5309388]
[1759465868177,0.8699,4498.0,4497.9,0.5309388]
[1759465868382,1.0919,4498.0,4497.9,0.5309388]
[1759465868877,1.0919,4498.0,4497.9,0.0244388]
[1759465872883,0.8699,4498.0,4497.9,0.0244388]
[1759465873080,1.0919,4498.0,4497.9,0.0244388]
[1759465874278,0.8699,4498.0,4497.9,0.0244388]
[1759465874579,1.0919,4498.0,4497.9,0.0244388]
[1759465876190,0.3214,4497.2,4496.9,0.79640518]
[1759465876380,0.7479,4497.0,4496.9,0.5065]
[1759465876578,0.8699,4497.0,4496.9,0.5065]
[1759465876778,0.8699,4497.0,4496.8,0.79640518]
[1759465876980,0.3214,4496.8,4496.7,3.2078]
[1759465877186,1.3726743,4496.8,4496.7,3.20936827]
[1759465878185,1.3726743,4496.8,4496.7,0.00156827]
[1759465878387,0.9727143,4496.8,4496.7,0.00156827]
[1759465878780,0.9727143,4496.8,4496.7,0.50806827]
[1759465879883,0.0028143,4496.8,4496.7,1.11993827]
[1759465880089,0.0028143,4496.8,4496.7,6.11993827]
[1759465881282,0.0028143,4496.8,4496.7,1.11993827]
[1759465882986,0.7507143,4496.8,4496.7,1.11993827]
[1759465883593,0.2181143,4496.8,4496.7,1.11993827]
[1759465883993,0.0028143,4496.8,4496.7,1.11993827]
[1759465884592,0.2248143,4496.8,4496.7,1.11993827]
[1759465889995,0.9508143,4496.8,4496.7,0.71996827]
[1759465890690,0.4434143,4496.8,4496.7,0.71996827]
[1759465891499,0.0028143,4496.8,4496.7,0.71996827]
[1759465891694,0.0028143,4496.8,4496.7,1.51637345]
[1759465892900,0.5164143,4496.8,4496.7,1.51637345]
[1759465893095,0.5164143,4496.8,4496.7,0.71996827]
[1759465893298,0.7220143,4496.8,4496.7,1.51637345]
[1759465894192,0.2139143,4496.8,4496.7,0.71996827]
[1759465894387,0.0028143,4496.8,4496.7,0.71996827]
[1759465894792,0.2139143,4496.8,4496.7,0.71996827]
[1759465894994,0.0028143,4496.8,4496.7,0.71996827]
[1759465895195,0.0028143,4496.8,4496.7,1.91693791]
[1759465897201,0.0028143,4496.8,4496.7,0.71996827]
[1759465900506,0.122,4498.5,4496.7,0.71996827]
[1759465900507,0.2111,4498.2,4498.1,1.16334]
[1759465900697,0.5136,4498.4,4498.3,0.4326]
[1759465900905,0.5136,4498.4,4498.3,0.7635]
[1759465901405,0.51560082,4498.4,4498.3,0.7635]
[1759465901705,0.94320082,4498.4,4498.3,0.7635]
[1759465903404,0.94320082,4498.4,4498.3,0.3309]
[1759465903599,0.94320082,4498.4,4497.8,0.79902121]
[1759465903600,0.7192,4497.9,4497.8,0.79902121]
[1759465903806,0.7192,4497.8,4497.7,0.79902121]
[1759465904402,0.7192,4497.7,4497.6,1.34862121]
[1759465904906,0.7192,4497.7,4497.6,1.01772121]
[1759465905107,0.7192,4497.7,4497.6,1.34862121]
[1759465905306,0.7192,4497.7,4497.6,0.5496]
[1759465906303,0.7192,4497.7,4497.5,0.79902121]
[1759465906503,0.7192,4497.6,4497.4,0.79902121]
[1759465906698,0.5396,4497.5,4497.4,0.2187]
[1759465906904,0.8421,4497.5,4497.4,0.5496]
[1759465907707,0.7192,4497.5,4497.4,1.16341]
[1759465907907,0.7192,4497.5,4497.4,1.96243121]
[1759465908706,0.3025,4497.4,4497.2,0.61831924]
[1759465908907,0.7192,4496.8,4496.5,3.2078]
[1759465909107,0.9412,4496.8,4496.5,3.2078]
[1759465910504,0.9412,4496.8,4496.3,0.7309]
[1759465911709,0.9412,4496.8,4496.3,0.3309]
[1759465912309,0.9412,4496.8,4496.5,0.3309]
[1759465912810,0.2111,4496.8,4496.7,0.76506827]
[1759465913113,0.4331,4496.8,4496.7,0.76506827]
[1759465913314,0.7356,4496.8,4496.7,0.76506827]
[1759465913614,0.9412,4496.8,4496.7,0.76506827]
[1759465915613,3.2078,4497.0,4496.7,0.43416827]
[1759465915917,0.5228,4497.5,4497.4,0.3309]
[1759465915918,3.2078,4497.5,4497.4,0.3309]
[1759465916214,3.4298,4497.5,4497.4,1.16341]
[1759465917415,3.2078,4498.0,4497.9,0.7635]
[1759465917617,3.4298,4498.0,4497.9,0.7635]